fUSD/lending_fUSD_20250504
["ID","MTS","AMOUNT","RATE_DAILY","PERIOD"]
[359778096,1746331838112,-450.0,0.00019899,2]
[359778097,1746331838121,-46.83455957,0.00019899,2]
[359778098,1746331838134,-414.25566835,0.00019899,2]
[359778099,1746331838143,-450.0,0.00019899,2]
[359778100,1746331838153,-450.0,0.00019899,2]
[359778101,1746331838163,-450.0,0.00019899,2]
[359778102,1746331838172,-288.06990718,0.00019899,2]
[359778103,1746331838181,-1469.10146682,0.000199,2]
[359778104,1746331838191,-11234.96392443,0.000199,2]
[359778105,1746331838200,-495.09805562,0.000199,2]
[359778106,1746331838209,-3806.9407623,0.000199,2]
[359778107,1746331838219,-4632.41492406,0.000199,2]
[359778108,1746331838228,-500.0,0.00019973,2]
[359778109,1746331838237,-502.02433921,0.00019973,2]
[359778110,1746331838246,-500.0,0.00019973,2]
[359778111,1746331838256,-500.0,0.00019973,2]
[359778112,1746331838265,-500.0,0.00019973,2]
[359778113,1746331838274,-450.0,0.00019975,2]
[359778114,1746331838283,-450.0,0.00019975,2]
[359778115,1746331838292,-537.49266867,0.00019975,2]
[359778116,1746331838302,-450.0,0.00019975,2]
[359778117,1746331838311,-450.0,0.00019975,2]
[359778118,1746331838320,-450.0,0.00019975,2]
[359778119,1746331838329,-450.0,0.00019975,2]
[359778120,1746331838338,-450.0,0.00019975,2]
[359778121,1746331838347,-450.0,0.00019975,2]
[359778122,1746331838356,-450.0,0.00019975,2]
[359778123,1746331838366,-450.0,0.00019975,2]
[359778124,1746331838375,-450.0,0.00019975,2]
[359778125,1746331838384,-450.0,0.00019975,2]
[359778126,1746331838393,-738.7,0.00019975,2]
[359778127,1746331838402,-450.0,0.00019975,2]
[359778128,1746331838411,-450.0,0.00019975,2]
[359778129,1746331838420,-450.0,0.00019975,2]
[359778130,1746331838429,-1039.08,0.00019975,2]
[359778131,1746331838439,-666.34,0.00019975,2]
[359778132,1746331838449,-450.0,0.00019975,2]
[359778133,1746331838459,-473.74,0.00019975,2]
[359778134,1746331838468,-462.32,0.00019975,2]
[359778135,1746331838477,-671.22,0.00019975,2]
[359778136,1746331838486,-450.0,0.00019975,2]
[359778137,1746331838495,-450.0,0.00019975,2]
[359778138,1746331838505,-450.0,0.00019975,2]
[359778139,1746331838514,-450.0,0.00019975,2]
[359778140,1746331838523,-450.0,0.00019975,2]
[359778141,1746331838533,-450.0,0.00019975,2]
[359778142,1746331838542,-450.0,0.00019975,2]
[359778143,1746331838551,-450.0,0.00019975,2]
[359778144,1746331838560,-450.0,0.00019975,2]
[359778145,1746331838568,-450.79,0.00019975,2]
[359778146,1746331838577,-450.0,0.00019975,2]
[359778147,1746331838587,-1317.69,0.00019975,2]
[359778148,1746331838596,-450.0,0.00019975,2]
[359778149,1746331838605,-535.01,0.00019975,2]
[359778150,1746331838614,-454.64,0.00019975,2]
[359778151,1746331838623,-555.42,0.00019975,2]
[359778152,1746331838632,-1000.0,0.00019985,2]
[359778153,1746331838642,-255.01631759,0.00019985,2]
[359778154,1746331838653,-450.0,0.00019985,2]
[359778155,1746331838662,-450.0,0.00019985,2]
[359778156,1746331838671,-450.0,0.00019985,2]
[359778157,1746331838680,-694.83,0.00019985,2]
[359778158,1746331838689,-1500.66,0.00019985,2]
[359778159,1746331838697,-3628.48,0.00019985,2]
[359778160,1746331838707,-3500.9718327,0.00019986,2]
[359778161,1746331838715,-53971.0497288,0.00019986,2]
[359778162,1746331838724,-7522.5532388,0.00019986,2]
[359778163,1746331838733,-5903.16655894,0.00019986,2]
[359778164,1746331838745,-775.44461026,0.00019986,2]
[359778165,1746331838756,-10862.7189265,0.00019986,2]
[359778166,1746331838764,-1895.339486,0.00019986,2]
[359778167,1746331838775,-4102.55025104,0.00019986,2]
[359778168,1746331838786,-410.54545757,0.00019986,2]
[359778169,1746331838796,-24412.1090964,0.00019986,2]
[359778170,1746331838807,-364.04259866,0.00019986,2]
[359778171,1746331838827,-450.0,0.00019975,2]
[359778172,1746331838837,-214639.42055553,0.00019986,2]
[359778173,1746331838846,-200.0,0.00019986,2]
[359778174,1746331838855,-812.23343656,0.0001999,2]
[359778175,1746331838863,-812.23343656,0.0001999,2]
[359778176,1746331838872,-3472.958,0.0001999,2]
[359778177,1746331838881,-168.098,0.0001999,2]
[359778178,1746331838890,-812.23343656,0.0001999,2]
[359778179,1746331838898,-2159.0,0.00019999,2]
[359778180,1746331838907,-4010.0,0.00019999,2]
[359778181,1746331838916,-161.167,0.00019999,2]
[359778182,1746331838926,-272.379,0.00019999,2]
[359778183,1746331838934,-6759.0,0.00019999,2]
[359778184,1746331838943,-878.0,0.00019999,2]
[359778185,1746331838952,-878.0,0.00019999,2]
[359778186,1746331838961,-666.0,0.00019999,2]
[359778187,1746331838970,-300.0,0.00019999,2]
[359778188,1746331838980,-300.0,0.00019999,2]
[359778189,1746331838989,-500.0,0.00019999,2]
[359778190,1746331838998,-500.0,0.00019999,2]
[359778191,1746331839007,-500.0,0.00019999,2]
[359778192,1746331839016,-666.0,0.00019999,2]
[359778193,1746331839026,-500.0,0.00019999,2]
[359778194,1746331839035,-377.98337964,0.00019999,2]
[359778195,1746331839044,-300.0,0.00019999,2]
[359778196,1746331839054,-500.0,0.00019999,2]
[359778197,1746331839063,-505.93,0.00019999,2]
[359778198,1746331839072,-266.97429626,0.00019999,2]
[359778199,1746331839082,-311.50156723,0.00019999,2]
[359778200,1746331839091,-185.54166149,0.00019999,2]
[359778201,1746331839100,-181.1975835,0.00019999,2]
[359778202,1746331839109,-233.59773999,0.00019999,2]
[359778203,1746331839117,-500.0,0.00019999,2]
[359778204,1746331839126,-500.0,0.00019999,2]
[359778205,1746331839135,-500.0,0.00019999,2]
[359778206,1746331839144,-500.0,0.00019999,2]
[359778207,1746331839152,-500.0,0.00019999,2]
[359778208,1746331839160,-500.0,0.00019999,2]
[359778209,1746331839169,-631.93303104,0.00019999,2]
[359778210,1746331839177,-500.0,0.00019999,2]
[359778211,1746331839186,-500.0,0.00019999,2]
[359778212,1746331839194,-500.0,0.00019999,2]
[359778213,1746331839204,-300.0,0.00019999,2]
[359778214,1746331839213,-997.0,0.00019999,2]
[359778215,1746331839222,-1241.15270693,0.0002,2]
[359778216,1746331839231,-38532.36238396,0.0002,2]
[359778217,1746331839526,-2281.87364935,0.0002,2]
[359778221,1746331840372,-101880.06117608,0.0002,2]
[359778222,1746331840389,-3057897.77282426,0.0002,2]
[359778223,1746331840399,-1017052.47495335,0.0002,2]
[359778224,1746331840408,-79075.97519373,0.0002,4]
[359778225,1746331840418,-216294.64295454,0.0002,2]
[359778226,1746331840430,-17271.10688379,0.0002,2]
[359778227,1746331840441,-57032.32733898,0.0002,2]
[359778228,1746331840453,-21136.19751154,0.0002,2]
[359778251,1746331845919,-853.35,0.00019876,2]
[359778252,1746331845930,-146.65,0.00019887,2]
[359778266,1746331946802,357.73,0.00017133,2]
[359778267,1746331946995,357.73,0.00019397,2]
[359778268,1746332087923,152.75,0.000298,31]
[359778269,1746332087974,152.75,0.000298,31]
[359778270,1746332088035,152.75,0.000298,31]
[359778271,1746332088094,152.75,0.000298,31]
[359778272,1746332088271,152.75,0.000298,31]
[359778273,1746332088323,152.75,0.000298,31]
[359778274,1746332088381,152.75,0.000298,31]
[359778275,1746332093478,-178.72,0.00019529,2]
[359778276,1746332204377,1102.78,0.00018968,2]
[359778277,1746332318201,1000.0,0.0001892,2]
[359778278,1746332327716,403.60924213,0.00019554,2]
[359778279,1746332406139,265.26,0.00018898,2]
[359778280,1746332408706,217.43,0.00018898,2]
[359778281,1746332422876,349.96,0.00030137,120]
[359778284,1746332458365,160.82378255,0.00032,120]
[359778285,1746332523341,170.44,0.00019178,2]
[359778286,1746332659952,2678.72923468,0.000195,2]
[359778287,1746332659976,4735.46847681,0.000195,2]
[359778288,1746332660000,4735.46847681,0.000195,2]
[359778289,1746332660027,4735.46847681,0.000195,2]
[359778290,1746332660051,2767.72165989,0.000195,2]
[359778291,1746332690381,152.79,0.000298,31]
[359778292,1746332690742,152.79,0.000298,31]
[359778293,1746332690790,152.79,0.000298,31]
[359778294,1746332690828,152.79,0.000298,31]
[359778295,1746332690868,152.79,0.000298,31]
[359778296,1746332690908,152.79,0.000298,31]
[359778297,1746332690953,152.79,0.000298,31]
[359778298,1746332719612,250.0,0.00017,2]
[359778299,1746332720675,300.0,0.00019,2]
[359778314,1746332844624,168.52,0.00019391,2]
[359778315,1746332885227,250.0,0.00018827,2]
[359778316,1746332885869,150.050413,0.0003,30]
[359778317,1746332901278,150.050413,0.0003,31]
[359778318,1746332914563,150.050413,0.0003,32]
[359778319,1746332927952,150.050413,0.0003,33]
[359778323,1746332961420,159.74,0.0001898,2]
[359778332,1746333031931,-150.0,0.00019714,2]
[359778333,1746333031940,-151.89655283,0.00019714,2]
[359778334,1746333031949,-200.0,0.00019714,2]
[359778335,1746333031958,-150.0,0.00019715,2]
[359778336,1746333031967,-200.0,0.00019716,2]
[359778337,1746333031977,-150.0,0.00019718,2]
[359778338,1746333031986,-151.0,0.0001972,2]
[359778339,1746333031995,-207.4,0.0001972,2]
[359778340,1746333032004,-39.63535074,0.00019723,2]
[359778341,1746333032015,-110.36464926,0.00019723,2]
[359778342,1746333032024,-150.0,0.00019726,2]
[359778343,1746333032033,-150.0,0.00019726,2]
[359778344,1746333032043,-150.0,0.00019727,2]
[359778345,1746333032052,-150.0,0.00019731,2]
[359778346,1746333032061,-150.0,0.00019732,2]
[359778347,1746333032070,-1000.0,0.00019732,2]
[359778348,1746333032079,-150.0,0.00019734,2]
[359778349,1746333032088,-300.0,0.00019734,2]
[359778350,1746333032097,-150.0,0.00019735,2]
[359778351,1746333032106,-1000.0,0.00019735,2]
[359778352,1746333032114,-1200.0,0.00019735,2]
[359778353,1746333032123,-150.0,0.00019736,2]
[359778354,1746333032132,-150.0,0.00019736,2]
[359778355,1746333032142,-150.0,0.00019737,2]
[359778356,1746333032154,-150.0,0.00019739,2]
[359778357,1746333032166,-150.0,0.00019742,2]
[359778358,1746333032175,-150.0,0.00019745,2]
[359778359,1746333032184,-150.0,0.00019746,2]
[359778360,1746333032193,-150.0,0.00019747,2]
[359778361,1746333032202,-150.0,0.00019748,2]
[359778362,1746333032211,-150.0,0.00019748,2]
[359778363,1746333032220,-300.0,0.00019748,2]
[359778364,1746333032229,-300.0,0.00019749,2]
[359778365,1746333032238,-778.04546667,0.0001975,2]
[359778366,1746333032260,-912.22240164,0.0001975,2]
[359778367,1746333032270,-583.40321748,0.0001975,2]
[359778368,1746333032281,-3394.3197052,0.0001975,2]
[359778369,1746333032291,-150.0,0.00019754,2]
[359778370,1746333032300,-150.0,0.00019756,2]
[359778371,1746333032309,-278.40090184,0.00019756,2]
[359778372,1746333032322,-396.39455306,0.00019756,2]
[359778373,1746333032334,-175.2045451,0.00019756,2]
[359778374,1746333032344,-150.0,0.00019759,2]
[359778375,1746333032353,-150.0,0.00019762,2]
[359778376,1746333032362,-29.2154549,0.00019763,2]
[359778377,1746333032380,-120.7845451,0.00019763,2]
[359778378,1746333032389,-150.0,0.00019766,2]
[359778380,1746333032398,-150.0,0.00019767,2]
[359778382,1746333032407,-150.0,0.00019767,2]
[359778384,1746333032415,-24.60599682,0.0001977,2]
[359778387,1746333032426,-125.39400318,0.0001977,2]
[359778390,1746333032435,-150.0,0.00019771,2]
[359778393,1746333032444,-485.1562,0.00019776,2]
[359778396,1746333032454,-150.0,0.00019776,2]
[359778399,1746333032463,-150.0,0.00019778,2]
[359778402,1746333032472,-150.0,0.00019781,2]
[359778405,1746333032481,-150.0,0.00019783,2]
[359778407,1746333032490,-317.081,0.00019786,2]
[359778409,1746333032499,-2468.2121,0.00019787,2]
[359778410,1746333032508,-672.6542,0.00019787,2]
[359778411,1746333032518,-54.53773527,0.00019787,2]
[359778412,1746333032529,-1625.27396473,0.00019787,2]
[359778413,1746333032538,-500.0,0.00019789,2]
[359778414,1746333032547,-150.0,0.00019789,2]
[359778415,1746333032556,-152.78678492,0.00019793,2]
[359778416,1746333032565,-150.0,0.00019793,2]
[359778417,1746333032574,-150.0,0.00019793,2]
[359778418,1746333032583,-500.0,0.00019793,2]
[359778419,1746333032593,-153.0473031,0.00019793,2]
[359778420,1746333032602,-172.72578975,0.00019793,2]
[359778421,1746333032611,-150.0,0.00019794,2]
[359778422,1746333032619,-150.0,0.00019796,2]
[359778423,1746333032629,-150.0,0.00019798,2]
[359778424,1746333032638,-518.7032701,0.00019799,2]
[359778425,1746333032647,-150.0,0.00019799,2]
[359778426,1746333032657,-500.0,0.00019799,2]
[359778427,1746333032666,-153.29766781,0.00019799,2]
[359778428,1746333032675,-500.0,0.00019799,2]
[359778429,1746333032685,-562.28297067,0.000198,2]
[359778430,1746333032696,-298.695,0.000198,2]
[359778431,1746333032708,-330.03477724,0.000198,2]
[359778432,1746333032718,-372.51000098,0.000198,2]
[359778433,1746333032729,-445.49189213,0.000198,2]
[359778434,1746333032740,-257.82737027,0.000198,2]
[359778435,1746333032760,-3985.40504496,0.000198,2]
[359778436,1746333032772,-622.49241668,0.000198,2]
[359778437,1746333032787,-1339.95998566,0.000198,2]
[359778438,1746333032799,-588.1693003,0.000198,2]
[359778439,1746333032811,-1561.45269311,0.000198,2]
[359778440,1746333032820,-1021.0,0.000198,2]
[359778441,1746333032830,-150.0,0.00019802,2]
[359778442,1746333032839,-150.0,0.00019804,2]
[359778443,1746333032848,-150.0,0.00019808,2]
[359778444,1746333032857,-150.0,0.00019812,2]
[359778445,1746333032866,-150.0,0.00019816,2]
[359778446,1746333032875,-150.0,0.0001982,2]
[359778447,1746333032884,-967.5473069,0.00019823,2]
[359778448,1746333032896,-32.4526931,0.00019823,2]
[359778449,1746333032905,-150.0,0.00019823,2]
[359778450,1746333032914,-150.0,0.00019823,2]
[359778451,1746333032924,-150.0,0.0001983,2]
[359778452,1746333032934,-150.0,0.00019831,2]
[359778453,1746333032945,-1000.0,0.00019838,2]
[359778454,1746333032955,-200.0,0.0001984,2]
[359778455,1746333032964,-150.0,0.00019842,2]
[359778456,1746333032973,-150.0,0.00019846,2]
[359778457,1746333032983,-150.0,0.00019847,2]
[359778458,1746333032994,-150.0,0.00019852,2]
[359778459,1746333033005,-150.0,0.00019858,2]
[359778460,1746333033014,-150.0,0.0001986,2]
[359778461,1746333033024,-150.0,0.00019863,2]
[359778462,1746333033034,-152.62196597,0.00019864,2]
[359778463,1746333033043,-150.0,0.00019865,2]
[359778464,1746333033053,-150.0,0.00019868,2]
[359778465,1746333033062,-150.0,0.0001987,2]
[359778466,1746333033072,-150.0,0.00019872,2]
[359778467,1746333033082,-150.0,0.00019873,2]
[359778468,1746333033092,-150.0,0.00019873,2]
[359778469,1746333033101,-200.50818108,0.00019875,2]
[359778470,1746333033113,-299.49181892,0.00019875,2]
[359778471,1746333033122,-500.0,0.00019875,2]
[359778472,1746333033131,-500.0,0.00019875,2]
[359778473,1746333033140,-500.0,0.00019875,2]
[359778474,1746333033149,-500.0,0.00019875,2]
[359778475,1746333033160,-500.0,0.00019875,2]
[359778476,1746333033173,-40.9813741,0.00019875,2]
[359778477,1746333033185,-459.0186259,0.00019875,2]
[359778478,1746333033194,-165.83143144,0.00019875,2]
[359778479,1746333033204,-407.31460349,0.00019875,2]
[359778480,1746333033213,-4028.99595735,0.00019876,2]
[359778481,1746333033224,-10857.67100371,0.00019876,2]
[359778485,1746333037972,-9944.93427575,0.00019876,2]
[359778486,1746333038029,-36663.79741104,0.00019876,2]
[359778487,1746333038086,-6655.51135215,0.00019876,2]
[359778488,1746333038095,-150.0,0.00019881,2]
[359778489,1746333038105,-150.0,0.00019881,2]
[359778490,1746333038115,-150.0,0.00019883,2]
[359778491,1746333038124,-163.81347882,0.00019883,2]
[359778492,1746333038133,-2500.0,0.00019883,2]
[359778493,1746333038143,-162.23466151,0.00019884,2]
[359778494,1746333038152,-12376.8493,0.00019886,2]
[359778495,1746333038162,-150.0,0.00019889,2]
[359778496,1746333038174,-162.23466149,0.00019889,2]
[359778497,1746333038183,-150.0,0.0001989,2]
[359778498,1746333038193,-150.0,0.00019892,2]
[359778499,1746333038202,-162.23466149,0.00019895,2]
[359778500,1746333038213,-150.0,0.00019895,2]
[359778501,1746333038222,-150.0,0.00019897,2]
[359778502,1746333038232,-450.0,0.00019899,2]
[359778503,1746333038241,-150.24470802,0.00019899,2]
[359778504,1746333038251,-500.0,0.00019899,2]
[359778505,1746333038260,-150.0,0.00019899,2]
[359778506,1746333038270,-151.600141,0.00019899,2]
[359778507,1746333038279,-1000.0,0.000199,2]
[359778508,1746333038288,-150.77412916,0.000199,2]
[359778509,1746333038297,-181.17672563,0.000199,2]
[359778510,1746333038307,-5737.39750067,0.000199,2]
[359778511,1746333038316,-1000.0,0.000199,2]
[359778512,1746333038325,-163.81347882,0.000199,2]
[359778513,1746333038334,-162.23466149,0.000199,2]
[359778514,1746333038343,-384.84372942,0.000199,2]
[359778515,1746333038352,-17638.46580054,0.000199,2]
[359778516,1746333038361,-228.91694811,0.000199,3]
[359778517,1746333038370,-2537.9605082,0.000199,2]
[359778518,1746333038380,-3088.27661604,0.000199,2]
[359778519,1746333038389,-150.0,0.00019901,2]
[359778520,1746333038399,-150.0,0.00019904,2]
[359778521,1746333038408,-1042.60322033,0.00019905,2]
[359778522,1746333038418,-150.0,0.00019905,2]
[359778523,1746333038426,-150.0,0.00019907,2]
[359778524,1746333038436,-150.0,0.00019911,2]
[359778525,1746333038445,-150.0,0.00019913,2]
[359778526,1746333038454,-150.0,0.00019914,2]
[359778527,1746333038463,-150.0,0.00019918,2]
[359778528,1746333038472,-150.0,0.00019919,2]
[359778529,1746333038481,-150.0,0.00019923,2]
[359778530,1746333038490,-150.0,0.00019924,2]
[359778531,1746333038499,-150.0,0.00019925,2]
[359778532,1746333038509,-150.0,0.00019927,2]
[359778533,1746333038518,-150.0,0.00019927,2]
[359778534,1746333038526,-150.0,0.00019928,2]
[359778535,1746333038535,-150.0,0.00019929,2]
[359778536,1746333038544,-150.0,0.00019935,2]
[359778537,1746333038554,-150.0,0.00019935,2]
[359778538,1746333038563,-151.54135065,0.00019935,2]
[359778539,1746333038572,-150.0,0.00019935,2]
[359778540,1746333038581,-151.08800937,0.00019935,2]
[359778541,1746333038590,-150.0,0.00019937,2]
[359778542,1746333038599,-150.0,0.00019939,2]
[359778543,1746333038608,-150.0,0.00019945,2]
[359778544,1746333038617,-150.0,0.00019951,2]
[359778545,1746333038626,-150.0,0.00019953,2]
[359778546,1746333038835,-150.0,0.00019957,2]
[359778547,1746333038844,-150.0,0.0001996,2]
[359778548,1746333038853,-150.0,0.00019961,2]
[359778549,1746333038862,-150.0,0.00019965,2]
[359778550,1746333038872,-150.0,0.00019966,2]
[359778551,1746333038881,-150.0,0.0001997,2]
[359778552,1746333038890,-524.31196993,0.00019973,2]
[359778553,1746333038899,-1000.0,0.00019973,2]
[359778554,1746333038908,-1069.78,0.00019973,2]
[359778555,1746333038918,-150.0,0.00019977,2]
[359778556,1746333038927,-150.0,0.00019978,2]
[359778557,1746333038937,-150.0,0.00019978,2]
[359778558,1746333038946,-150.0,0.00019979,2]
[359778559,1746333038955,-150.0,0.0001998,2]
[359778560,1746333038965,-150.0,0.0001998,2]
[359778561,1746333038974,-150.0,0.0001998,2]
[359778562,1746333038983,-150.0,0.00019982,2]
[359778563,1746333038993,-450.0,0.00019982,2]
[359778564,1746333039002,-450.0,0.00019982,2]
[359778565,1746333039011,-505.15579799,0.00019982,2]
[359778566,1746333039020,-450.0,0.00019982,2]
[359778567,1746333039029,-547.43514998,0.00019982,2]
[359778568,1746333039039,-538.42799459,0.00019982,2]
[359778569,1746333039048,-579.33838416,0.00019982,2]
[359778570,1746333039057,-4473.72,0.00019982,2]
[359778571,1746333039067,-450.0,0.00019982,2]
[359778572,1746333039076,-502.28711164,0.00019982,2]
[359778573,1746333039086,-595.14371813,0.00019982,2]
[359778574,1746333039096,-567.20302934,0.00019982,2]
[359778575,1746333039106,-536.05968456,0.00019982,2]
[359778576,1746333039116,-450.0,0.00019982,2]
[359778577,1746333039125,-450.0,0.00019982,2]
[359778578,1746333039134,-450.0,0.00019982,2]
[359778579,1746333039143,-665.88,0.00019982,2]
[359778580,1746333039152,-315.25412437,0.00019982,2]
[359778581,1746333039162,-590.4063593,0.00019982,2]
[359778582,1746333039174,-569.20046436,0.00019982,2]
[359778583,1746333039183,-515.8031476,0.00019982,2]
[359778584,1746333039193,-504.11656949,0.00019982,2]
[359778585,1746333039202,-525.34,0.00019982,2]
[359778586,1746333039212,-1438.13,0.00019982,2]
[359778587,1746333039221,-450.0,0.00019982,2]
[359778588,1746333039230,-450.0,0.00019982,2]
[359778589,1746333039240,-539.32936386,0.00019982,2]
[359778590,1746333039250,-553.76168169,0.00019982,2]
[359778591,1746333039260,-450.0,0.00019982,2]
[359778592,1746333039269,-538.44024011,0.00019982,2]
[359778593,1746333039279,-450.0,0.00019982,2]
[359778594,1746333039287,-450.0,0.00019982,2]
[359778595,1746333039297,-3477.29,0.00019982,2]
[359778596,1746333039306,-512.36550182,0.00019982,2]
[359778597,1746333039315,-553.86922142,0.00019982,2]
[359778598,1746333039324,-450.0,0.00019982,2]
[359778599,1746333039333,-450.0,0.00019982,2]
[359778600,1746333039342,-502.08471782,0.00019982,2]
[359778601,1746333039351,-473.51592784,0.00019982,2]
[359778602,1746333039360,-519.31917299,0.00019982,2]
[359778603,1746333039370,-450.0,0.00019982,2]
[359778604,1746333039379,-508.75696871,0.00019982,2]
[359778605,1746333039388,-466.68084342,0.00019982,2]
[359778606,1746333039397,-526.9490515,0.00019982,2]
[359778607,1746333039407,-450.0,0.00019983,2]
[359778608,1746333039418,-518.77626595,0.00019983,2]
[359778609,1746333039427,-485.32801868,0.00019983,2]
[359778610,1746333039436,-450.0,0.00019983,2]
[359778611,1746333039446,-450.80032787,0.00019983,2]
[359778612,1746333039455,-488.57233852,0.00019983,2]
[359778613,1746333039464,-484.35991547,0.00019983,2]
[359778614,1746333039474,-490.20422057,0.00019983,2]
[359778615,1746333039483,-456.75100474,0.00019983,2]
[359778616,1746333039492,-506.58233134,0.00019983,2]
[359778617,1746333039503,-483.55379987,0.00019983,2]
[359778618,1746333039513,-477.44502852,0.00019983,2]
[359778619,1746333039523,-375.58360661,0.00019983,2]
[359778620,1746333039532,-471.50147587,0.00019983,2]
[359778621,1746333039540,-491.66404043,0.00019983,2]
[359778622,1746333039549,-509.58839897,0.00019983,2]
[359778623,1746333039559,-492.94616675,0.00019983,2]
[359778624,1746333039568,-450.0,0.00019983,2]
[359778625,1746333039578,-466.23960595,0.00019983,2]
[359778626,1746333039587,-473.29454504,0.00019983,2]
[359778627,1746333039596,-466.02639522,0.00019983,2]
[359778628,1746333039607,-479.5491451,0.00019983,2]
[359778629,1746333039617,-682.6,0.00019983,2]
[359778630,1746333039628,-470.77540128,0.00019983,2]
[359778631,1746333039638,-474.56210781,0.00019983,2]
[359778632,1746333039648,-481.94600891,0.00019983,2]
[359778633,1746333039660,-476.04680025,0.00019983,2]
[359778634,1746333039671,-502.48502704,0.00019983,2]
[359778635,1746333039688,-513.01785541,0.00019983,2]
[359778636,1746333039703,-479.83669279,0.00019983,2]
[359778637,1746333039715,-480.03742812,0.00019983,2]
[359778638,1746333039724,-450.0,0.00019983,2]
[359778639,1746333039734,-450.0,0.00019983,2]
[359778640,1746333039743,-469.44157939,0.00019983,2]
[359778641,1746333039753,-450.0,0.00019983,2]
[359778642,1746333039763,-450.0,0.00019983,2]
[359778643,1746333039772,-470.96035674,0.00019983,2]
[359778644,1746333039782,-450.0,0.00019983,2]
[359778645,1746333039792,-450.0,0.00019983,2]
[359778646,1746333039802,-450.0,0.00019983,2]
[359778647,1746333039812,-577.46,0.00019983,2]
[359778648,1746333039822,-450.0,0.00019983,2]
[359778649,1746333039831,-489.728093,0.00019983,2]
[359778650,1746333039841,-450.0,0.00019983,2]
[359778651,1746333039851,-481.67938829,0.00019983,2]
[359778652,1746333039861,-450.0,0.00019983,2]
[359778653,1746333039871,-450.0,0.00019983,2]
[359778654,1746333039881,-329.84,0.00019983,2]
[359778655,1746333039891,-1000.0,0.00019983,2]
[359778656,1746333039900,-501.12695075,0.00019983,2]
[359778657,1746333039910,-480.91730484,0.00019983,2]
[359778658,1746333039920,-450.0,0.00019983,2]
[359778660,1746333039930,-450.0,0.00019983,2]
[359778661,1746333039940,-450.0,0.00019983,2]
[359778662,1746333039949,-450.0,0.00019983,2]
[359778663,1746333039958,-450.0,0.00019983,2]
[359778664,1746333039968,-510.27978299,0.00019983,2]
[359778665,1746333039977,-450.0,0.00019983,2]
[359778666,1746333039987,-450.0,0.00019983,2]
[359778667,1746333039996,-486.19536912,0.00019983,2]
[359778668,1746333040006,-243.55054785,0.00019983,2]
[359778669,1746333040016,-404.96633795,0.00019983,2]
[359778670,1746333040025,-450.0,0.00019983,2]
[359778671,1746333040035,-450.0,0.00019983,2]
[359778672,1746333040045,-450.0,0.00019983,2]
[359778673,1746333040054,-160.49942616,0.00019983,2]
[359778674,1746333040064,-473.14083239,0.00019983,2]
[359778675,1746333040074,-477.55907264,0.00019983,2]
[359778676,1746333040083,-518.55272925,0.00019983,2]
[359778677,1746333040093,-450.0,0.00019983,2]
[359778678,1746333040103,-450.0,0.00019983,2]
[359778679,1746333040112,-445.94128612,0.00019983,2]
[359778680,1746333040122,-450.0,0.00019983,2]
[359778681,1746333040132,-450.0,0.00019983,2]
[359778682,1746333040142,-450.0,0.00019983,2]
[359778683,1746333040152,-450.0,0.00019983,2]